Cogmind - Beta 9.4 @@@ ROGUE MODE // 2020.02.15 @ 09:20:58 Player: redd Result: Smashed by cave-in Performance ------------- Evolutions (0) 0 Regions Visited (1) 200 Robots Destroyed (22) 110 Value Destroyed (341) 341 Prototype IDs (0) 0 Alien Tech Used (0) 0 Bonus (0) 0 TOTAL SCORE: 651 Bonus ------- None Cogmind --------- Core Integrity 0/250 Matter 252/300 Energy 99/100 System Corruption 10% Temperature Cool (0) Movement Core (300) Ox5 Location -10/Materials Parts ------- > --- POWER (1) -------- (None) > --- PROPULSION (2) --- (None) > --- UTILITY (2) ------ Large Storage Unit > --- WEAPON (2) ------- Light Assault Rifle > --- INVENTORY (10) --- Light Ion Engine Sensor Array Signal Interpreter Targeting Computer ECM Suite Propulsion Shielding Light Armor Plating EM Pulse Gun Light Assault Rifle Datajack Peak State ------------ > --- POWER ------------ Light Ion Engine > --- PROPULSION ------- Wheel Wheel > --- UTILITY ---------- Large Storage Unit Hacking Suite > --- WEAPON ----------- Light Assault Rifle Light Assault Rifle > --- INVENTORY -------- Light Ion Engine Light Treads Sensor Array Signal Interpreter Targeting Computer Light Armor Plating Light Armor Plating EM Pulse Gun Datajack Hammer [Rating: 10] Favorites ----------- Power Light Ion Engine Engine Light Ion Engine Propulsion Wheel Wheel Wheel Utility Large Storage Unit Storage Large Storage Unit Hackware Hacking Suite Protection Light Armor Plating Weapon Light Assault Rifle Ballistic Gun Light Assault Rifle Slashing Weapon Mining Claw Special Melee Weapon Datajack Build | -11 -10 ------- Run | Scr Mat Slots Evolved . | . . Power . | . . Propulsion . | . . Utility . | . . Weapon . | . . Parts Attached 32 | 5 27 Power 8 | 1 7 Engine 8 | 1 7 Core . | . . Reactor . | . . Propulsion 6 | 2 4 Treads . | . . Leg . | . . Wheel 6 | 2 4 Hover . | . . Flight . | . . Utility 5 | 1 4 Device . | . . Storage 2 | 1 1 Processor . | . . Hackware 1 | . 1 Protection 2 | . 2 Artifact . | . . Weapon 13 | 1 12 Energy Gun . | . . Energy Cannon . | . . Ballistic Gun 10 | 1 9 Ballistic Cannon . | . . Launcher . | . . Special Weapon . | . . Impact Weapon . | . . Slashing Weapon 1 | . 1 Piercing Weapon . | . . Special Melee Weapon 2 | . 2 Unidentified Prototypes . | . . Parts Lost 5 | . 5 Power . | . . Propulsion 3 | . 3 Utility 1 | . 1 Weapon 1 | . 1 Highest Loss Streak 3 | . 3 Average Slot Usage (%) 94 | . 94 Engine 13 | . 13 Wheel 26 | . 26 Storage 14 | . 14 Hackware 5 | . 5 Protection 6 | . 6 Ballistic Gun 24 | . 24 Slashing Weapon 1 | . 1 Naked Turns . | . . Heaviest Build 24 | 11 24 Greatest Support 26 | 26 26 Greatest Overweight (x) 5 | . 5 Average Overweight (x) . | . . Largest Inventory Capacity 12 | 6 12 Average Capacity 9 | 5 9 Most Carried 10 | 4 10 Average Carried 8 | 1 9 Final Capacity 10 | 6 10 Final Carried 10 | 3 10 Class Distribution -------------------- 68% | Scavenger-Mutant 31% | Mutant Dominant Class ---------------- Scavenger-Mutant | -10/Materials Resources | -11 -10 ----------- Run | Scr Mat Matter Collected 639 | 150 489 Remotely . | . . Salvage Created 516 | . 516 Parts 47 | . 47 Haulers Intercepted 1 | . 1 Recyclers Shooed . | . . Parts Field Recycled . | . . Retrieved Matter . | . . Parts Self-Destructed . | . . Prevented . | . . Kills | -11 -10 ------- Run | Scr Mat Combat Hostiles Destroyed 17 | . 17 Guns 17 | . 17 Classes Destroyed 6 | . 6 Worker 1 | . 1 Hauler 1 | . 1 Operator 1 | . 1 Watcher 2 | . 2 Swarmer 12 | . 12 Grunt 5 | . 5 Best Kill Streak 3 | . 3 Combat Bots Only 3 | . 3 Max Kills in Single Turn 1 | . 1 Gunslinging . | . . Exploded . | . . Melee . | . . Uniques/NPCs Destroyed . | . . Combat | -11 -10 -------- Run | Scr Mat Damage Taken 1147 | . 1147 Core 268 | . 268 Absorbed by Shields . | . . Core Remaining (%) 100 | 100 . Volleys Fired 81 | . 81 Largest 2 | . 2 Hottest 40 | . 40 Shots Fired 150 | . 150 Gun 150 | . 150 Cannon . | . . Launcher . | . . Special . | . . Kinetic 150 | . 150 Thermal . | . . Explosive . | . . Electromagnetic . | . . Robot Hit Streak 7 | . 7 Robot Miss Streak 5 | . 5 Penetration Max . | . . Secondary Targets 1 | . 1 Max Gunslinging Chain 1 | . 1 Shots Hit Robots 91 | . 91 Core Hits 33 | . 33 Critical Hits 1 | . 1 Critical Kills . | . . Critical Parts Destroyed 1 | . 1 Melee Attacks 46 | . 46 Impact . | . . Slashing 40 | . 40 Piercing . | . . Sneak Attacks 6 | . 6 Combat Hostiles . | . . Follow-up Attacks . | . . Damage Inflicted 691 | . 691 Guns 691 | . 691 Cannons . | . . Explosions . | . . Melee . | . . Ramming . | . . Kinetic 691 | . 691 Thermal . | . . Explosive . | . . Electromagnetic . | . . Impact . | . . Slashing . | . . Piercing . | . . Highest Corruption 8 | . 8 Average Corruption 8 | . 8 Corruption Purged . | . . Effects 3 | . 3 Matter Fused 2 | . 2 Energy Discharges 1 | . 1 Overload Shots . | . . Overflow Damage . | . . Projectiles . | . . Explosions . | . . Melee . | . . Knockbacks . | . . Impact . | . . Kinetic . | . . Secondary . | . . Self-Inflicted Damage . | . . Shots . | . . Rammed . | . . Targets Rammed . | . . Kicked . | . . Crushed . | . . Highest Temperature 64 | . 64 Average Temperature 22 | . 22 Received Heat Transfer 174 | . 174 Siege Activations . | . . Robots Corrupted . | . . Combat Hostiles . | . . Parts Fried . | . . Impact Corruptions . | . . Robots Melted . | . . Combat Hostiles . | . . Parts Melted . | . . Heat Transferred . | . . Parts Sabotaged . | . . Parts Stolen . | . . Parts Stripped . | . . Power Chain Reactions . | . . Missiles Intercepted . | . . Alert | -11 -10 ------- Run | Scr Mat Peak Influence 178 | . 178 Average Influence 52 | . 53 Maximum Alert Level . | . . Low Security (%) 100 | 100 100 Level 1 . | . . Level 2 . | . . Level 3 . | . . Level 4 . | . . Level 5 . | . . High Security . | . . Max Security . | . . Squads Dispatched 3 | . 3 Investigation 2 | . 2 Extermination . | . . Reinforcement 1 | . 1 Assault . | . . Garrison . | . . Intercept . | . . Construction Impeded . | . . Haulers Reinforced . | . . Stealth | -11 -10 --------- Run | Scr Mat Distress Signals . | . . Communications Jammed . | . . Distress Signals . | . . Times Spotted 27 | . 27 Peak Tracking Total 3 | . 3 Tactical Retreats 1 | . 1 Traps | -11 -10 ------- Run | Scr Mat Traps Triggered 1 | . 1 Indirectly . | . . Trap Hack Attempts . | . . Triggered . | . . Disarmed . | . . Reprogrammed 6 | . 6 Reused 1 | . 1 Traps Extracted . | . . Installed . | . . Triggered 1 | . 1 Machines | -11 -10 ---------- Run | Scr Mat Machines Disabled . | . . Max in Single Turn . | . . Machines Sabotaged . | . . Garrisons Compromised . | . . Overloaded Fab Kills . | . . Fab Network Shutdowns . | . . Hacking | -11 -10 --------- Run | Scr Mat Machines Accessed 9 | . 9 Terminals 6 | . 6 Fabricators . | . . Repair Stations 1 | . 1 Recycling Units 2 | . 2 Scanalyzers . | . . Garrison Access . | . . Total Hacks 37 | . 37 Successful 28 | . 28 Failed 9 | . 9 Catastrophic . | . . Database Lockouts . | . . Manual 9 | . 9 Terminals 22 | . 22 Fabricators . | . . Repair Stations 8 | . 8 Recycling Units 7 | . 7 Scanalyzers . | . . Garrison Access . | . . Terminal Hacks 14 | . 14 Robot Analysis 1 | . 1 Emergency Access Points 1 | . 1 Terminal Index 1 | . 1 Repair Station Index 1 | . 1 Alert Level 1 | . 1 Locate Traps 3 | . 3 Reprogram Traps 1 | . 1 Investigation Status 1 | . 1 Recall Investigation 1 | . 1 Zone Layout 3 | . 3 Fabricator Hacks . | . . Repair Station Hacks 8 | . 8 Scan Component 4 | . 4 Repair 4 | . 4 Recycling Unit Hacks 4 | . 4 Report Inventory 3 | . 3 Retrieve Components 1 | . 1 Scanalyzer . | . . Garrison Access Hacks . | . . Unauthorized Hacks 6 | . 6 Terminals 2 | . 2 Botnet 2 | . 2 Fabricators . | . . Repair Stations . | . . Recycling Units . | . . Scanalyzers . | . . Garrison Access . | . . Data Cores Recovered . | . . Used . | . . Hacking Detections 8 | . 8 Full Trace Events 1 | . 1 Feedback Events . | . . Feedback Blocked . | . . Robot Schematics Acquired . | . . Robots Built . | . . Matter . | . . Time . | . . Total Robot Build Rating . | . . Part Schematics Acquired . | . . Parts Built . | . . Matter . | . . Time . | . . Total Part Build Rating . | . . Parts Repaired 4 | . 4 Time 104 | . 104 Parts Recycled . | . . Recycled Matter . | . . Retrieved Matter . | . . Retrieved Components 10 | . 10 Parts Scanalyzed . | . . Part Schematics Acquired . | . . Parts Damaged . | . . Bothacking | -11 -10 ------------ Run | Scr Mat Used RIF Installer . | . . Robots Hacked 3 | . 3 Non-combat 3 | . 3 Combat . | . . Robot Hacks Applied 3 | . 3 no_distress 3 | . 3 Relay Couplers Released . | . . Robots Rewired . | . . Allies Hacked . | . . Hacks Repelled . | . . Allies | -11 -10 -------- Run | Scr Mat Total Allies . | . . Largest Group . | . . Highest-Rated Group . | . . Highest-Rated Ally . | . . Total Orders . | . . Ally Attacks . | . . Total Damage . | . . Kills . | . . Allies Corrupted . | . . Allies Melted . | . . Intel | -11 -10 ------- Run | Scr Mat Robot Analysis Total 1 | . 1 Derelict Logs Recovered . | . . Drone Launches . | . . Drone Recoveries . | . . Exploration | -11 -10 ------------- Run | Scr Mat Turns Passed 2258 | 51 2207 Spaces Moved 1345 | 47 1298 Core 32 | 11 21 Treads . | . . Legs . | . . Wheels 1313 | 36 1277 Hover . | . . Flight . | . . Fastest Speed 50 | 50 90 Average Speed 92 | 80 93 Slowest Speed 300 | 90 300 Overloaded Moves . | . . Propulsion Burnouts . | . . Robots Hopped . | . . Cave-ins Triggered 4 | . 4 Exploration Rate (%) 51 | 3 99 Regions Visited 1 Branch Regions . Pre-discovered Areas . | . . Known Exits Taken . | . . Unknown Exits Taken 1 | 1 . Scrap Searched . | . . Spaces Dug 38 | . 38 Terrain Destroyed 38 | . 38 Melee 38 | . 38 Projectile . | . . AOE . | . . Actions | -11 -10 --------- Run | Scr Mat Total 2147 | 59 2088 Wait 597 | . 597 Move 1340 | 46 1294 Hop . | . . Pick Up 27 | 8 19 Fast Attach 5 | . 5 Attach 10 | 5 5 Detach 3 | . 3 Swap 17 | . 17 Drop 18 | . 18 Fire 81 | . 81 Melee 46 | . 46 Ram . | . . Kick . | . . Crush . | . . Escape Stasis 3 | . 3 Rewire . | . . Trap . | . . Miscellaneous . | . . Route ------- -11/Scrapyard -10/Materials (discovered 4 exits: [*Mat x3] / [*Min]) History --------- Turn | Location | Event 22 | -11/Scrapyard | Discovered new exit (range 15) 52 | -11/Scrapyard | Entered Materials 148 | -10/Materials | Discovered new exit (range 16) 311 | -10/Materials | Build established: Mutant 359 | -10/Materials | Discovered new exit (range 8) 477 | -10/Materials | Discovered new exit (range 15) 952 | -10/Materials | Build established: Scavenger-Mutant 1109 | -10/Materials | Repaired Wheel 1229 | -10/Materials | Core integrity fell below 50% 1338 | -10/Materials | Discovered new exit (range 8) 1789 | -10/Materials | Repaired Lgt. Assault Rifle 1816 | -10/Materials | Repaired Wheel 1843 | -10/Materials | Repaired Wheel 2197 | -10/Materials | Crushed by falling debris 2226 | -10/Materials | Crushed by falling debris 2228 | -10/Materials | Lost 3 parts (2n1w) 2241 | -10/Materials | Crushed by falling debris 2242 | -10/Materials | Core integrity fell below 20% 2259 | -10/Materials | Crushed by falling debris 2259 | -10/Materials | Smashed by cave-in Last Messages --------------- 02197_ The unstable cave ceiling collapses. 02197_ Crushed by falling debris. 02197_ Mining Claw destroyed. 02197_ System corrupted by crushing effect (+4). 02197_ Wheel destroyed. 02197_ System corrupted by crushing effect (+3). 02197_ Wheel destroyed. 02197_ System corrupted by crushing effect (+1). 02198_ Dropped Lgt. Ion Engine. 02200_ System corrupted: Matter fused (-10). 02216_ System corrupted: Matter fused (-8). 02226_ The unstable cave ceiling collapses. 02226_ Crushed by falling debris. 02241_ The unstable cave ceiling collapses. 02241_ Crushed by falling debris. 02244_ System corrupted: Energy discharge (-23). 02259_ The unstable cave ceiling collapses. 02259_ Crushed by falling debris. 02259_ Hacking Suite destroyed. 02259_ System corrupted by crushing effect (+2). Map ----- +----------------------------------------------------+ | ?????# %[[ #?# ##/ | | ?????# =%= #?# ## | | ?????# ##########+### #?# / ###### | | ?????## ##????# ## ##?######+######????? | | ??????# #?????# ## #??????# #########? | | ??????# #?????# """"" ## #??????# # #? | | ??????# #?????# """"" ## #??????# # #? | | ??????# #?????# """"" ## #??????# + #? | | ??????# #?????# ## #??????# # % #? | | ??????# #?????# """"" ## ##?????# # #? | | ??????# #?????# """"" # ####### ########## | | ??????# #?????# """"" # | | ??????# ??????# # | | ??????# ??????# # | | ??????# ??????######### ###### ######## | | ??????? < ??????????????#######????#! !#??????? | | ???????????????????????????????????#! !#??????? | | ???????????????????????????????????##!! !##??????# | | ????????????????????????????????????############## | | ??????????????????????????????????????????# | | ??????????????????????????????????????????# | | ??????????????????????????????????????????# | | ????????????????????????????????????########+##### | | ????????????????????????????????????# / # | | ??????????########################### """ # | | ??????????##* # @ # # "Y" """ # | | ??????????########################### """ """ # | | ????????????????????????????????????# # | | ????????????????????????????????????############## | | | | | | | | | | | | | | | | | | | | | | | | | | | | | | | | | | | | | | | | | | | +----------------------------------------------------+ Best States ------------- Heat Dissipation 25 Energy Generation 10 Energy Capacity 250 Matter Stores 300 Matter Capacity 300 Sight Range 16 Terrain Scan Density 10 Armor Coverage 150 Evasion (%) 50 Offensive Hacking 10 Item Schematics ----------------- None Robot Schematics ------------------ None Fabricated ------------ Nothing Alien Tech Used ----------------- None Achievements -------------- GoHome() Part-time Excavator True Hacker root@ Challenges ------------ None Game ------ Seed MassDefenseShield Manual? 0 Play Time 00:38:39 Cumulative 28.9 hours Start 2020.02.15 @ 07:58:40 End 2020.02.15 @ 09:20:58 Sessions 3 Manual Loads 0 Difficulty Rogue Special Mode None Game No. 19 Rogue 19 Adventurer 0 Explorer 0 Win Type - Total 0 Types 0/0/0/0/0/0/0 Lore% 20 Gallery% 15 Achievement% 13 Wizard Run 0 Options --------- ASCII 1 Keyboard 0 Movement Mouse Keybinds 0 Fullscreen 2 Font 20/Terminus Map View 66x50 Tactical HUD 1 Map Filters NONE Filters NONE Steam 1 RUN: 92a85bed-5ccb-445f-8615-f522ca1a9ab8